bitfinex-derivatives/quotes_ETHF0:USTF0_20260131
["timestamp","ask_amount","ask_price","bid_price","bid_amount"]
[1769881896661,4.13175581,2405.2,2403.3,0.00445799]
[1769881896857,3.87157679,2405.0,2403.3,0.00445799]
[1769881897255,4.07982679,2404.7,2402.9,3.329]
[1769881897464,4.07983679,2404.5,2402.6,3.87405748]
[1769881897755,3.87157679,2404.3,2402.0,3.87405748]
[1769881897965,3.53727,2404.4,2401.3,3.87405748]
[1769881897966,3.87157679,2403.5,2401.3,3.87405748]
[1769881898262,3.8757036,2403.5,2401.3,3.87707188]
[1769881898963,3.8757036,2403.5,2401.3,0.0030144]
[1769881899260,3.87157679,2403.3,2401.3,0.0030144]
[1769881899858,3.87157679,2402.8,2400.6,3.87405748]
[1769881900156,3.87157679,2402.6,2400.6,3.87405748]
[1769881900758,3.87157679,2402.6,2400.6,3.8772008]
[1769881901254,0.00412681,2403.5,2400.6,3.8772008]
[1769881901456,0.00412681,2403.5,2401.1,3.87405748]
[1769881901457,3.82082421,2403.5,2401.1,3.87405748]
[1769881902459,0.00412681,2403.5,2401.1,3.87405748]
[1769881903262,0.00412681,2403.5,2401.3,4.03357275]
[1769881904258,0.00412681,2403.5,2401.3,4.24210275]
[1769881904464,0.00412681,2403.5,2401.8,4.03357275]
[1769881904660,0.00412681,2403.5,2402.0,4.03357275]
[1769881905162,3.8166974,2404.4,2402.0,4.03357275]
[1769881905466,4.0249474,2404.6,2402.0,4.03357275]
[1769881906168,4.03019617,2404.6,2402.0,4.03357275]
[1769881907667,3.82194617,2404.6,2402.0,4.03357275]
[1769881907863,0.00524877,2404.6,2402.3,4.03357275]
[1769881908166,0.00524877,2404.6,2402.7,4.03357275]
[1769881909466,0.00524877,2404.6,2402.7,4.24199275]
[1769881910668,0.00524877,2404.6,2402.9,3.89341011]
[1769881911269,3.82194617,2404.6,2402.9,3.89341011]
[1769881913967,0.00524877,2404.6,2402.9,3.89341011]
[1769881914866,0.00524877,2404.6,2403.2,4.03357275]
[1769881915075,3.8166974,2405.4,2403.4,4.03357275]
[1769881915673,3.8166974,2405.8,2403.4,4.03357275]
[1769881915974,3.82073374,2405.8,2403.4,4.03357275]
[1769881917276,3.8166974,2405.4,2402.5,4.03357275]
[1769881917774,3.8166974,2405.0,2402.5,4.03357275]
[1769881917966,3.8166974,2404.9,2402.5,4.03357275]
[1769881918574,3.8166974,2404.7,2402.5,4.03357275]
[1769881918968,3.8166974,2405.6,2402.5,4.03357275]
[1769881919276,3.8166974,2405.6,2402.5,4.24200275]
[1769881919979,3.33,2405.7,2402.5,4.24200275]
[1769881919980,3.8166974,2405.1,2402.5,4.24200275]
[1769881920177,3.8166974,2404.6,2402.5,4.03357275]
[1769881920680,4.0249574,2404.6,2402.5,4.03357275]
[1769881920983,3.8166974,2404.6,2402.5,4.03357275]
[1769881921373,3.8166974,2405.0,2402.5,4.03357275]
[1769881921577,3.8166974,2405.0,2402.7,4.03357275]
[1769881921779,3.8166974,2405.7,2402.7,4.03357275]
[1769881922082,3.8166974,2405.7,2402.9,4.03357275]
[1769881922272,3.8166974,2405.2,2402.9,4.03357275]
[1769881922682,3.8166974,2404.8,2402.9,4.03357275]
[1769881924482,3.8166974,2405.4,2402.9,4.03357275]
[1769881925173,3.8166974,2405.0,2402.9,4.03357275]
[1769881925380,3.8166974,2404.6,2402.9,4.03357275]
[1769881925574,4.0249874,2404.2,2402.4,3.33]
[1769881925778,3.8166974,2403.7,2402.4,3.33]
[1769881925982,3.81972824,2403.7,2402.4,3.33]
[1769881926179,4.0250674,2403.3,2401.3,4.03357275]
[1769881926380,3.94131082,2402.4,2400.6,4.03357275]
[1769881927182,3.94131082,2402.4,2400.6,4.03873607]
[1769881927883,3.78934764,2402.8,2400.6,3.91412265]
[1769881928383,3.99775764,2402.8,2400.6,3.91412265]
[1769881928585,3.78934764,2402.6,2400.6,3.91412265]
[1769881928782,3.78934764,2402.6,2400.6,0.00516332]
[1769881929086,3.78934764,2402.2,2400.6,0.00516332]
[1769881929590,3.78934764,2403.2,2400.6,0.00516332]
[1769881929775,3.78934764,2403.2,2400.7,4.0543033]
[1769881931585,3.78934764,2402.8,2400.7,4.0543033]
[1769881932784,3.78934764,2403.2,2400.7,4.0543033]
[1769881936280,0.00303084,2403.7,2400.6,0.00516332]
[1769881936281,3.79237848,2403.7,2401.2,4.0543033]
[1769881936586,0.00303084,2403.7,2401.8,4.0543033]
[1769881937084,3.78934764,2404.6,2402.2,4.0543033]
[1769881938087,3.79395905,2404.6,2402.2,4.0543033]
[1769881938391,3.78934764,2404.4,2402.2,4.0543033]
[1769881939590,3.78934764,2404.4,2402.4,4.0543033]
[1769881939785,3.78934764,2404.4,2402.5,3.331]
[1769881939990,3.78934764,2404.4,2402.6,4.0543033]
[1769881940789,0.00461141,2404.6,2402.6,4.0543033]
[1769881942393,0.00461141,2404.6,2403.0,4.0543033]
[1769881943087,3.78934764,2405.6,2403.0,4.0543033]
[1769881943292,3.78934764,2406.0,2403.0,4.0543033]
[1769881943995,7.12034764,2406.4,2403.8,0.20832]
[1769881944187,0.00530028,2406.4,2404.5,4.0543033]
[1769881944495,0.00530028,2406.4,2404.7,4.0543033]
[1769881944696,3.78934764,2407.7,2404.7,4.0543033]
[1769881944994,3.78934764,2407.7,2404.6,2.442]
[1769881944995,3.78934764,2407.7,2405.3,4.0543033]
[1769881945193,3.78934764,2407.7,2405.5,4.0543033]
[1769881945594,3.79233567,2407.7,2405.5,4.0543033]
[1769881946005,3.99734764,2407.6,2405.4,3.331]
[1769881946299,3.78934764,2407.2,2405.4,3.331]
[1769881946694,3.78934764,2406.8,2404.7,4.0543033]
[1769881946895,3.99740764,2406.8,2404.7,4.0543033]
[1769881947099,3.78934764,2406.8,2404.7,4.0543033]
[1769881948792,3.79233567,2407.7,2404.7,4.0543033]
[1769881949098,0.00298803,2407.7,2405.4,4.2624833]
[1769881949299,0.00298803,2407.7,2405.6,4.0543033]
[1769881949497,0.00298803,2407.7,2405.8,4.0543033]
[1769881949693,0.00298803,2407.7,2405.7,2.441]
[1769881949694,0.00298803,2407.7,2406.2,4.0543033]
[1769881949902,0.00298803,2407.7,2406.2,4.05923162]
[1769881953798,0.07228428,2409.0,2406.2,4.05923162]
[1769881954108,3.78934764,2409.6,2406.2,4.05923162]
[1769881954109,3.78934764,2409.6,2406.9,4.2623533]
[1769881954311,3.78934764,2409.6,2407.1,4.0543033]
[1769881954506,3.78934764,2409.6,2407.1,4.2623333]
[1769881954702,3.78934764,2409.6,2407.1,4.0543033]
[1769881954904,3.79347428,2409.6,2407.1,4.0543033]
[1769881955104,3.79347428,2409.6,2407.0,5.768]
[1769881955307,3.78934764,2408.8,2407.0,3.328]
[1769881955706,3.99725764,2408.6,2406.3,4.0543033]
[1769881955911,3.78934764,2408.1,2406.2,0.00492832]
[1769881956413,3.78934764,2407.9,2406.2,0.00492832]
[1769881956610,4.00049943,2407.9,2406.2,0.00492832]
[1769881956807,3.79252943,2407.9,2406.2,4.05923162]
[1769881958306,0.00318179,2407.9,2406.2,4.05923162]
[1769881959012,0.00318179,2407.9,2406.2,4.26734162]
[1769881959913,0.00318179,2407.9,2406.2,4.05923162]
[1769881960608,3.86746524,2409.1,2406.2,4.05923162]
[1769881960808,3.86746524,2409.1,2406.4,0.2081]
[1769881961114,3.86746524,2409.1,2406.5,3.77533722]
[1769881961315,3.86746524,2409.1,2406.7,3.77533722]
[1769881961718,3.8711214,2409.1,2406.7,3.77533722]
[1769881963009,3.86155547,2409.9,2407.4,3.77533722]
[1769881963214,3.78929041,2409.9,2407.6,3.77533722]
[1769881963710,3.78929041,2409.9,2407.6,4.11044457]
[1769881964113,3.79375342,2409.9,2407.6,4.11044457]
[1769881964309,3.79375342,2409.9,2407.6,3.77533722]
[1769881964515,3.78929041,2409.7,2407.8,3.77533722]
[1769881965009,3.78929041,2409.7,2407.9,5.763]
[1769881965208,3.78929041,2409.7,2407.9,0.00302964]
[1769881965508,0.00446301,2409.9,2407.9,0.00302964]
[1769881965509,3.78929041,2409.4,2407.9,0.00302964]
[1769881967312,3.78929041,2408.4,2406.5,3.77533722]
[1769881968212,3.78929041,2409.2,2406.5,3.77533722]
[1769881968519,3.78929041,2409.2,2406.5,3.77828833]
[1769881971412,3.78929041,2409.2,2406.8,3.77533722]
[1769881971919,3.78929041,2409.8,2407.3,3.77533722]
[1769881972119,3.78929041,2409.8,2407.5,3.77533722]
[1769881974726,0.00446301,2409.9,2407.5,3.98333722]
[1769881974925,0.00446301,2409.9,2407.9,3.77533722]
[1769881975314,0.00446301,2409.9,2407.9,3.98330722]
[1769881975624,3.79375342,2409.9,2407.9,3.98330722]
[1769881976624,3.79375342,2409.9,2407.9,3.77533722]
[1769881977816,3.79375342,2409.9,2407.7,5.761]
[1769881977817,3.78929041,2409.7,2407.7,5.761]
[1769881978022,3.78929041,2409.3,2407.1,3.77533722]
[1769881980416,3.78929041,2409.8,2407.3,3.77533722]
[1769881981429,0.00446301,2409.9,2407.8,3.77533722]
[1769881981629,0.00446301,2409.9,2408.0,3.77533722]
[1769881982326,0.00446301,2409.9,2408.2,3.77533722]
[1769881982624,3.79375342,2409.9,2408.3,3.77533722]
[1769881982920,0.00446301,2409.9,2408.3,3.77533722]
[1769881983522,0.00446301,2409.9,2408.3,3.98326722]
[1769881984625,3.79375342,2409.9,2408.3,3.77533722]
[1769881985321,3.79375342,2409.9,2408.2,2.44034162]
[1769881986217,3.79375342,2409.9,2408.3,3.77533722]
[1769881986725,0.00446301,2409.9,2408.3,3.77533722]
[1769881987324,3.98700468,2409.9,2408.3,3.77533722]
[1769881988733,0.00446301,2409.9,2408.3,3.77533722]
[1769881991230,3.98700468,2409.9,2408.3,3.77533722]
[1769881992224,0.00446301,2409.9,2408.3,3.77533722]
[1769881992426,3.98700468,2409.9,2408.3,3.77533722]
[1769881993231,0.00446301,2409.9,2408.3,3.77533722]
[1769881993924,3.98700468,2409.9,2408.3,3.77533722]
[1769881995128,3.98700468,2409.9,2408.2,0.00434162]
[1769881995830,3.98700468,2409.9,2407.5,3.79154926]
[1769881995831,3.98254167,2409.4,2407.5,3.79154926]
[1769881996041,4.19038167,2409.4,2407.5,3.79154926]
[1769881996238,3.98254167,2409.4,2407.5,3.79154926]
[1769881996940,3.98254167,2409.4,2407.5,3.79630928]
[1769881997338,3.98254167,2409.8,2407.5,3.79630928]
[1769881997541,3.98254167,2409.8,2407.6,3.79154926]
[1769881997741,3.98254167,2409.8,2407.6,3.99953926]
[1769881999339,3.98254167,2409.8,2407.6,3.79154926]
[1769882001245,3.98254167,2409.6,2407.6,3.79154926]
[1769882002049,3.98700468,2409.9,2407.6,3.79154926]
[1769882002242,3.98700468,2409.9,2407.7,3.79154926]
[1769882002447,3.98700468,2409.9,2407.9,3.79154926]
[1769882002635,3.98700468,2409.9,2408.1,3.79154926]
[1769882003644,4.19480468,2409.9,2407.7,3.79154926]
[1769882003843,3.98254167,2409.7,2407.5,2.44076002]
[1769882004044,3.98254167,2409.5,2407.6,3.79154926]
[1769882004847,3.98254167,2409.3,2407.5,2.44076002]
[1769882005046,3.98254167,2409.3,2407.5,0.00476002]
[1769882005244,3.98254167,2408.9,2407.5,0.00476002]
[1769882005446,5.759,2409.6,2406.4,3.79154926]
[1769882005447,4.19045167,2408.6,2406.4,3.79154926]
[1769882005647,4.19045167,2408.6,2406.5,3.79154926]
[1769882006441,3.98254167,2408.6,2406.5,3.79630241]
[1769882007044,3.98254167,2408.6,2406.9,3.79154926]
[1769882007249,3.98254167,2408.6,2407.2,3.79154926]
[1769882008050,3.98254167,2408.6,2406.8,3.79154926]
[1769882008248,3.98254167,2409.0,2407.3,3.79154926]
[1769882008646,3.98254167,2409.0,2407.6,3.79154926]
[1769882008846,3.98254167,2409.0,2407.8,3.79154926]
[1769882009352,3.98254167,2409.0,2407.8,7.11454926]
[1769882010446,3.98254167,2409.0,2407.9,3.79154926]
[1769882010946,3.98254167,2409.0,2407.7,6.22754926]
[1769882011147,3.98254167,2409.0,2407.8,3.323]
[1769882011545,3.98254167,2409.0,2407.7,2.436]
[1769882013548,3.98254167,2409.0,2407.3,3.79154926]
[1769882013748,4.19041167,2409.0,2407.4,3.79154926]
[1769882014145,4.19041167,2409.0,2407.5,3.79154926]
[1769882014346,4.19035167,2409.8,2407.7,3.79154926]
[1769882014552,3.98254167,2409.3,2407.7,3.79154926]
[1769882015044,3.98254167,2409.1,2407.7,3.79154926]
[1769882016353,3.98254167,2409.1,2407.3,3.79154926]
[1769882017453,3.98254167,2409.1,2407.5,3.87139069]
[1769882018150,3.94450464,2409.4,2408.0,3.323]
[1769882018354,3.94450464,2409.4,2408.1,3.87139069]
[1769882018750,3.94450464,2409.4,2408.3,3.87139069]
[1769882018949,3.94450464,2409.8,2408.7,7.19439069]
[1769882019152,3.94450464,2409.8,2408.7,3.87139069]
[1769882019351,0.20786,2409.2,2407.4,10.68016303]
[1769882019549,3.94450464,2409.1,2407.2,3.87139069]
[1769882019752,0.20786,2409.2,2407.6,3.87139069]
[1769882020056,0.20786,2409.2,2408.0,3.87139069]
[1769882020249,3.94450464,2409.6,2408.0,3.87139069]
[1769882020452,0.00446301,2409.9,2408.6,3.87139069]
[1769882020653,3.94896765,2409.9,2408.6,3.87139069]
[1769882021847,3.94896765,2409.9,2408.6,7.19439069]
[1769882022961,3.94896765,2409.9,2408.7,3.73274381]
[1769882024564,3.94896765,2409.9,2408.7,7.05574381]
[1769882025364,0.00446301,2409.9,2409.1,7.05574381]
[1769882025565,0.00446301,2409.9,2409.3,3.323]
[1769882026065,0.00446301,2409.9,2409.4,3.323]
[1769882026267,0.00446301,2409.9,2409.3,3.323]
[1769882026667,0.00446301,2409.9,2408.7,3.73274381]
[1769882027363,1.89086019,2409.9,2408.7,3.73274381]
[1769882028267,0.00446301,2409.9,2408.7,3.73274381]
[1769882031269,2.06694034,2409.8,2408.1,3.73274381]
[1769882032067,0.20781,2409.8,2408.1,3.73274381]
[1769882032469,0.20781,2409.8,2408.1,14.41290684]
[1769882032671,0.20781,2409.8,2408.2,3.73274381]
[1769882034072,0.20781,2409.8,2408.2,14.41290684]
[1769882034270,0.20781,2409.8,2408.3,3.73274381]
[1769882035174,2.03850966,2409.8,2408.3,3.73274381]
[1769882037471,1.84665521,2409.6,2408.3,3.73274381]
[1769882038168,2.06583727,2409.4,2408.0,7.06081837]
[1769882038374,2.06583727,2409.4,2408.1,3.73274381]
[1769882038669,1.85799727,2409.4,2408.0,3.32807456]
[1769882038874,0.00446301,2409.9,2406.7,1.95504561]
[1769882038875,0.20792,2408.4,2406.7,4.10106043]
[1769882039869,0.20792,2408.4,2406.7,4.10431554]
[1769882040667,0.53972596,2408.4,2406.7,4.10431554]
[1769882040979,0.32756048,2409.0,2406.7,4.10431554]
[1769882041276,0.20795,2408.2,2406.7,4.10431554]
[1769882041469,0.20797,2407.9,2406.7,0.00325511]
[1769882041670,0.07180933,2407.8,2406.7,0.00325511]
[1769882041870,0.20798,2407.8,2406.7,4.06841088]
[1769882042374,0.07543494,2408.2,2406.1,4.06515577]
[1769882042375,0.20801,2407.5,2406.1,4.06515577]
[1769882042772,0.07180933,2407.3,2406.1,4.06515577]
[1769882042973,0.20805,2407.0,2405.5,3.322]
[1769882043276,0.75216933,2407.0,2405.5,3.32546342]
[1769882043477,0.75219933,2406.6,2404.3,0.32963086]
[1769882043675,0.54411933,2406.5,2404.4,2.436]
[1769882043876,0.61398826,2406.3,2404.4,2.436]
[1769882044074,0.61398826,2406.2,2404.4,2.436]
[1769882044574,0.61398826,2406.2,2403.8,3.324]
[1769882044770,0.00349179,2406.2,2404.2,0.00297162]
[1769882044975,0.00349179,2406.2,2404.3,3.7940663]
[1769882045375,0.61398826,2406.1,2404.3,3.7940663]
[1769882045576,0.21161179,2406.2,2404.3,3.7940663]
[1769882045771,0.00349179,2406.2,2404.3,3.7940663]
[1769882046483,0.20805,2406.9,2404.3,3.7940663]
[1769882047675,0.21318092,2406.9,2404.3,3.7940663]
[1769882048075,0.00513092,2406.9,2404.5,4.02412329]
[1769882049277,0.21319092,2406.9,2404.5,4.02412329]
[1769882049477,0.66990217,2406.8,2404.5,4.02412329]
[1769882049684,0.20807,2406.7,2404.5,4.02412329]
[1769882051680,0.91200395,2406.7,2404.5,4.02412329]
[1769882052079,0.70393395,2406.6,2404.5,4.02412329]
[1769882052776,0.20809,2406.5,2404.5,4.02412329]
[1769882053082,0.70393395,2406.4,2404.5,4.02412329]
[1769882053281,0.91207395,2405.9,2404.5,4.02412329]
[1769882053483,0.70393395,2405.8,2404.5,4.02412329]
[1769882053679,0.70393395,2405.8,2404.2,4.02709491]
[1769882053882,0.77196243,2405.3,2404.2,0.00297162]
[1769882054078,0.77196243,2405.3,2403.8,4.02412329]
[1769882054683,0.20812,2406.2,2403.8,4.02412329]
[1769882054981,0.77196243,2405.8,2403.8,4.02890251]
[1769882055176,0.98015243,2405.4,2403.8,4.02890251]
[1769882055783,0.73833707,2405.3,2403.8,4.02890251]
[1769882056175,0.20819,2405.4,2403.8,4.02890251]
[1769882057185,0.94652707,2405.4,2403.8,4.02890251]
[1769882057784,0.68362737,2405.3,2403.8,4.02890251]
[1769882057981,0.89186737,2404.8,2403.8,9.22e-06]
[1769882058881,0.2129278,2404.8,2403.8,4.02413251]
[1769882059277,0.0046878,2404.8,2403.8,4.02413251]
[1769882062387,0.91588512,2404.8,2403.8,9.22e-06]
[1769882062591,0.20825,2404.7,2403.8,9.22e-06]
[1769882064192,0.81096088,2404.7,2403.8,9.22e-06]
[1769882064591,0.20825,2404.7,2403.8,9.22e-06]
[1769882066091,0.0046878,2404.8,2403.8,9.22e-06]
[1769882066685,0.20818,2405.5,2403.8,9.22e-06]
[1769882066889,0.61058424,2406.3,2403.8,9.22e-06]
[1769882067296,0.2081,2406.4,2403.8,9.22e-06]
[1769882067698,0.20811,2406.3,2403.8,9.22e-06]
[1769882068305,0.20811,2406.3,2403.8,4.02413251]
[1769882068998,0.87701289,2406.0,2403.8,4.02413251]
[1769882069199,0.66888289,2405.9,2403.8,4.02413251]
[1769882070106,0.20816,2405.7,2403.8,4.02413251]
[1769882070408,0.88423178,2405.7,2403.8,4.02413251]
[1769882071100,0.20818,2405.4,2403.8,4.02413251]
[1769882071302,0.67607178,2405.3,2403.8,4.02413251]
[1769882072906,0.88426178,2405.3,2403.8,4.02413251]
[1769882073409,0.20819,2405.3,2403.8,4.02413251]
[1769882077704,2.32207266,2406.4,2403.8,4.02413251]
[1769882077705,2.31752765,2407.1,2404.8,3.90953247]
[1769882077913,0.20801,2407.4,2405.0,3.90953247]
[1769882078111,0.20802,2407.3,2405.0,3.90953247]
[1769882078305,0.20803,2407.2,2405.2,3.90953247]
[1769882078511,0.20803,2407.2,2405.4,3.90953247]
[1769882078808,0.21323376,2407.2,2405.4,3.90953247]
[1769882079006,0.00520376,2407.2,2405.4,4.23290525]
[1769882079207,0.00520376,2407.2,2405.6,3.90953247]
[1769882079513,0.00520376,2407.2,2405.6,3.91278559]
[1769882080608,1.09839365,2407.2,2405.6,3.91278559]
[1769882080909,0.20804,2407.1,2405.6,3.91278559]
[1769882081212,0.88515989,2406.8,2405.6,0.00325312]
[1769882081518,0.88515989,2406.4,2405.6,0.00325312]
[1769882082017,0.20809,2406.5,2405.6,0.00325312]
[1769882082617,1.27387526,2406.5,2405.6,0.00325312]
[1769882083018,1.02387526,2406.5,2405.6,0.00325312]
[1769882083219,1.23196526,2406.5,2405.6,0.00325312]
[1769882083916,0.20809,2406.5,2405.6,3.7408525]
[1769882084116,0.20809,2406.5,2405.6,0.00325312]
[1769882084912,3.328,2407.0,2405.6,3.7408525]
[1769882085117,0.20806,2406.9,2405.6,3.7408525]
[1769882085318,1.22051362,2406.9,2405.6,3.7408525]
[1769882085718,0.20806,2406.9,2405.6,3.7408525]
[1769882086125,0.00520376,2407.2,2405.6,3.7408525]
[1769882086823,1.22472549,2407.1,2405.6,3.7408525]
[1769882087023,0.20805,2407.0,2405.6,3.7408525]
[1769882087321,1.22473549,2407.0,2405.6,3.7408525]
[1769882087719,0.20805,2406.9,2405.6,3.7408525]
[1769882088316,0.20807,2406.7,2405.6,3.7408525]
[1769882089322,2.44520376,2407.2,2405.6,3.7408525]
[1769882089323,0.20809,2406.5,2405.6,3.7408525]
[1769882090320,0.20809,2406.5,2405.6,0.00325312]
[1769882090818,0.20809,2406.5,2405.6,3.7408525]
[1769882094622,1.00360198,2406.5,2405.6,0.00325312]
[1769882094924,0.2081,2406.4,2405.6,0.00325312]
[1769882095728,0.20804,2407.1,2405.6,3.7408525]
[1769882096420,1.00739083,2407.0,2405.6,3.7408525]
[1769882096625,1.21546083,2406.8,2405.6,0.00325312]
[1769882096827,1.21546083,2406.8,2405.6,3.7408525]
[1769882097126,0.20807,2406.8,2405.6,3.7408525]
[1769882099123,1.21831705,2406.8,2405.6,3.7408525]
[1769882099725,1.21831705,2406.7,2405.6,3.7408525]
[1769882099923,1.21710888,2406.6,2405.6,3.7408525]
[1769882100126,0.20808,2406.6,2405.6,3.7408525]
[1769882100925,1.21710888,2406.6,2405.6,3.7408525]
[1769882101327,0.20808,2406.6,2405.6,3.7408525]
[1769882101731,0.00520376,2407.2,2405.6,3.7408525]
[1769882102535,2.439,2407.9,2405.6,3.7408525]
[1769882102731,3.327,2408.0,2405.6,3.7408525]
[1769882102929,3.53496,2408.0,2405.6,3.7408525]
[1769882103127,1.00974129,2407.6,2405.6,3.7408525]
[1769882103528,1.01296933,2407.6,2405.6,3.7408525]
[1769882103932,0.20801,2407.4,2405.6,3.7408525]
[1769882105126,0.00322804,2407.6,2405.6,3.7408525]
[1769882105324,0.20793,2408.3,2405.8,3.73759938]
[1769882105523,0.20793,2408.3,2405.8,3.94574938]
[1769882106432,0.21251163,2408.3,2405.8,3.94574938]
[1769882107438,0.00458163,2408.3,2406.0,4.08019661]
[1769882107930,0.20796,2408.1,2406.0,4.08019661]
[1769882108122,0.20796,2408.0,2406.0,4.08019661]
[1769882109134,0.00458163,2408.3,2406.0,4.08019661]
[1769882109328,0.20789,2408.8,2406.0,4.28832661]
[1769882109535,0.20789,2408.8,2406.1,4.08019661]
[1769882109827,2.439,2409.2,2406.5,4.08019661]
[1769882110035,3.327,2409.4,2406.7,4.08019661]
[1769882110232,3.327,2409.4,2406.9,4.08019661]
[1769882110441,3.3299097,2409.4,2406.9,4.08019661]
[1769882110729,3.3299097,2409.4,2406.9,4.28824661]
[1769882112037,0.0029097,2409.4,2406.9,4.28824661]
[1769882114135,0.0029097,2409.4,2407.1,4.08019661]
[1769882114338,0.0029097,2409.4,2407.3,4.08019661]
[1769882114534,0.0029097,2409.4,2407.3,4.08331735]
[1769882115633,1.30528108,2410.4,2407.5,4.08019661]
[1769882115840,1.30528108,2410.4,2407.7,4.08019661]
[1769882116037,0.20775,2410.4,2407.7,4.08019661]
[1769882116429,0.20775,2410.4,2407.7,4.40629549]
[1769882116631,0.21223246,2410.4,2407.7,4.40629549]
[1769882118430,0.21223246,2410.4,2408.1,4.08019661]
[1769882118431,0.00448246,2410.4,2408.1,4.08019661]
[1769882118728,0.00448246,2410.4,2408.0,0.20795]
[1769882118729,0.00448246,2410.4,2408.3,4.08019661]
[1769882119129,0.95150505,2410.3,2408.3,4.08019661]
[1769882119531,1.15926505,2410.3,2408.3,4.08019661]
[1769882120639,0.90637441,2409.8,2408.3,4.08019661]
[1769882120840,1.11423441,2409.2,2408.0,4.08019661]
[1769882121038,1.11426441,2408.8,2407.4,4.08019661]
[1769882121432,0.90637441,2408.6,2407.3,4.08331735]
[1769882121741,1.11888244,2408.6,2407.3,4.08331735]
[1769882122438,1.13160809,2408.5,2407.3,4.08331735]
[1769882123436,0.20792,2408.5,2407.3,4.08331735]
[1769882123837,0.00459803,2408.6,2407.3,4.08331735]
[1769882124341,0.20784,2409.4,2407.3,4.08331735]
[1769882124645,0.9246351,2410.0,2407.3,4.08331735]
[1769882124843,0.20777,2410.2,2407.7,4.08019661]
[1769882125042,0.20777,2410.2,2407.9,4.08019661]
[1769882125444,0.21192527,2410.2,2407.9,4.08019661]
[1769882125640,1.1411584,2410.2,2407.9,4.08019661]
[1769882125850,0.88964006,2409.6,2407.9,4.08019661]
[1769882126049,1.09748006,2409.4,2407.9,4.08019661]
[1769882126245,0.20787,2409.1,2407.9,4.08019661]
[1769882126540,1.09757006,2408.4,2407.3,0.00312074]
[1769882126744,1.10109716,2408.4,2407.3,0.00312074]
[1769882127738,0.0035271,2408.4,2407.3,4.08331735]
[1769882128743,0.95175824,2408.4,2407.3,0.00312074]
[1769882128943,1.15967824,2408.4,2407.3,0.00312074]
[1769882129547,0.2114471,2408.4,2407.3,4.08331735]
[1769882129948,0.0035271,2408.4,2407.3,4.08331735]
[1769882130145,0.20785,2409.3,2407.3,4.08331735]
[1769882131248,0.90098123,2409.3,2407.3,4.08331735]
[1769882131445,0.89683065,2409.1,2407.3,4.08331735]
[1769882131850,0.20786,2409.2,2407.3,4.08331735]
[1769882132549,0.00415058,2409.3,2407.3,4.08331735]
[1769882135447,0.20779,2409.9,2407.3,4.29133735]
[1769882135643,0.20779,2409.9,2407.3,14.97150038]
[1769882135846,0.20779,2409.9,2407.4,4.08019661]
[1769882136555,0.210913,2409.9,2407.4,4.08019661]
[1769882136852,0.003123,2409.9,2407.6,4.28818661]
[1769882138848,1.02997023,2409.9,2407.6,4.08019661]
[1769882140254,0.003123,2409.9,2407.6,4.08019661]
[1769882140450,0.81323165,2409.5,2407.6,4.08019661]
[1769882141853,0.20786,2409.2,2407.6,4.08019661]
[1769882142053,1.09327874,2409.1,2407.6,4.08019661]
[1769882142749,1.30114874,2409.1,2407.6,4.08019661]
[1769882142948,1.09327874,2409.0,2407.6,4.08019661]
[1769882143147,1.30115874,2408.9,2407.6,4.08019661]
[1769882144162,1.76060039,2408.3,2406.0,15.53553227]
[1769882144354,1.55266039,2408.1,2406.1,2.436]
[1769882144556,1.76062039,2408.1,2406.1,2.436]
[1769882145259,0.21250322,2408.1,2406.1,2.44044314]
[1769882145757,0.00454322,2408.1,2406.1,2.44044314]
[1769882146156,0.00454322,2408.1,2406.2,4.04490945]
[1769882149662,1.52924451,2408.1,2406.2,4.04490945]
[1769882149864,1.73143695,2407.6,2406.2,4.04490945]
[1769882150261,0.34282351,2408.1,2406.2,4.04490945]
[1769882150262,1.73144695,2407.5,2406.2,4.04490945]
[1769882150561,1.73144695,2407.5,2406.1,0.00444314]
[1769882150562,1.52344695,2406.7,2405.4,4.04490945]
[1769882150762,1.52344695,2406.7,2404.8,4.04490945]
[1769882150955,0.20809,2406.5,2404.8,4.04490945]
[1769882151463,1.52344695,2407.3,2404.8,4.37158872]
[1769882151664,0.20803,2407.2,2404.8,4.37612414]
[1769882153163,1.73770462,2407.2,2404.8,4.37612414]
[1769882153361,1.73772462,2407.0,2404.8,4.04944487]
[1769882154267,0.20805,2407.0,2404.8,4.37736206]
[1769882154467,0.20805,2407.0,2404.8,4.04944487]
[1769882154668,1.7372732,2407.0,2404.8,4.04944487]
[1769882155365,1.7372932,2406.8,2404.8,4.04944487]
[1769882155556,0.20807,2406.7,2404.8,4.04944487]
[1769882156562,1.73662716,2406.7,2404.8,4.04944487]
[1769882156758,0.20808,2406.6,2404.8,4.04944487]
[1769882158664,1.73543614,2406.6,2404.8,4.04944487]
[1769882160059,1.54300413,2406.4,2404.8,4.04944487]
[1769882160264,1.54683715,2406.4,2404.8,4.04944487]
[1769882160859,1.54300413,2406.1,2404.8,4.04944487]
[1769882161061,1.54300413,2405.2,2404.8,5.42e-06]
[1769882161364,1.54300413,2405.2,2404.1,4.04490945]
[1769882161867,2.438,2406.0,2404.1,4.04490945]
[1769882161868,1.54080563,2405.8,2404.1,4.04490945]
[1769882162268,0.20814,2405.9,2404.1,4.04490945]
[1769882162468,1.74894563,2405.9,2404.1,4.04911603]
[1769882163165,0.20814,2405.9,2404.1,4.04911603]
[1769882163367,1.74894563,2405.9,2404.1,4.04911603]
[1769882163662,1.76899533,2405.7,2404.1,4.04911603]
[1769882163863,1.76901533,2405.4,2404.1,4.04911603]
[1769882164166,1.76903533,2405.2,2404.1,0.00420658]
[1769882164866,1.56083533,2404.9,2404.1,6.58e-06]
[1769882165058,1.56083533,2404.8,2404.1,6.58e-06]
[1769882165264,1.76908533,2404.7,2404.1,6.58e-06]
[1769882165464,1.76908533,2404.7,2403.4,4.04490945]
[1769882165665,0.20825,2404.7,2403.4,4.04490945]
[1769882165969,1.60165037,2405.5,2403.4,4.04490945]
[1769882166167,1.80983037,2405.5,2403.4,4.04490945]
[1769882166363,5.766,2405.8,2403.4,4.04490945]
[1769882166364,1.60165037,2405.8,2403.4,4.04490945]
[1769882166569,1.60165037,2405.5,2403.4,4.0501316]
[1769882167362,0.20821,2405.1,2403.4,4.0501316]
[1769882168874,0.21267153,2405.8,2403.4,4.0501316]
[1769882171374,1.82290385,2405.7,2403.4,4.0501316]
[1769882171570,0.20816,2405.7,2403.4,4.0501316]
[1769882172270,0.00452153,2405.8,2403.4,4.0501316]
[1769882172271,0.20817,2405.6,2403.4,4.0501316]
[1769882172473,1.83339323,2405.6,2403.4,4.0501316]
[1769882172774,0.20817,2405.6,2403.4,4.0501316]
[1769882173578,0.00452153,2405.8,2403.4,4.0501316]
[1769882173771,0.00452153,2405.8,2403.4,4.2584816]
[1769882174775,0.00452153,2405.8,2403.6,3.99642043]
[1769882175170,0.00452153,2405.8,2403.6,4.20476043]
[1769882175769,0.20811,2406.3,2403.9,4.20473043]